fUST/lending_fUST_20260210
["ID","MTS","AMOUNT","RATE_DAILY","PERIOD"]
[404947141,1770712238095,-500.0,0.00027499,2]
[404947142,1770712238104,-500.0,0.00027499,2]
[404947143,1770712238114,-500.0,0.00027499,2]
[404947144,1770712238124,-500.0,0.00027499,2]
[404947145,1770712238135,-500.0,0.00027499,2]
[404947146,1770712238145,-500.0,0.00027499,2]
[404947147,1770712238155,-500.0,0.00027499,2]
[404947148,1770712238165,-500.0,0.00027499,2]
[404947149,1770712238175,-500.0,0.00027499,2]
[404947150,1770712238184,-500.0,0.00027499,2]
[404947151,1770712238194,-500.0,0.00027499,2]
[404947152,1770712238203,-500.0,0.00027499,2]
[404947153,1770712238213,-500.0,0.00027499,2]
[404947154,1770712238223,-500.0,0.00027499,2]
[404947155,1770712238233,-500.0,0.00027499,2]
[404947156,1770712238242,-500.0,0.00027499,2]
[404947157,1770712238251,-450.0,0.00027499,2]
[404947158,1770712238260,-500.0,0.00027499,2]
[404947159,1770712238269,-500.0,0.00027499,2]
[404947160,1770712238279,-317.73251464,0.00027499,2]
[404947161,1770712238289,-32018.72375116,0.000275,2]
[404947162,1770712238298,-258.408891,0.00029568,2]
[404947163,1770712238307,-1494.65,0.00035,2]
[404947164,1770712238316,-725.39,0.00037123,10]
[404947165,1770712238326,-604.5,0.00037123,10]
[404947166,1770712238336,-427.9135977,0.00037133,2]
[404947167,1770712238346,-6374.19901143,0.00037133,7]
[404947168,1770712238356,-160.0,0.00037881,3]
[404947169,1770712238365,-500.0,0.00038355,120]
[404947170,1770712238375,-500.0,0.00038355,2]
[404947171,1770712238385,-186.653104,0.00038356,120]
[404947172,1770712238395,-186.653104,0.00038356,120]
[404947173,1770712238405,-186.653104,0.00038356,120]
[404947174,1770712238415,-186.653104,0.00038356,120]
[404947175,1770712238425,-151.0,0.00038356,120]
[404947176,1770712238435,-151.0,0.00038356,120]
[404947177,1770712238445,-250.323598,0.00038356,120]
[404947178,1770712238455,-151.0,0.00038356,120]
[404947179,1770712238465,-151.0,0.00038356,120]
[404947180,1770712238475,-186.653104,0.00038534,120]
[404947181,1770712238485,-186.653104,0.00038534,120]
[404947182,1770712238494,-186.653104,0.00038534,120]
[404947183,1770712238505,-186.653104,0.00038534,120]
[404947184,1770712238515,-151.0,0.00038534,120]
[404947185,1770712238525,-151.0,0.00038534,120]
[404947186,1770712238535,-722.35955783,0.00038534,2]
[404947187,1770712238546,-500.0,0.00038642,120]
[404947188,1770712238555,-500.0,0.00038642,2]
[404947189,1770712238566,-218.8,0.0003898,10]
[404947190,1770712238575,-257.9931506,0.0003898,3]
[404947191,1770712238585,-500.0,0.00038989,120]
[404947192,1770712238595,-384.49,0.00038989,2]
[404947193,1770712238604,-209.40437684,0.00038989,10]
[404947194,1770712238615,-217.15233878,0.00038989,10]
[404947195,1770712238624,-225.18697532,0.00038989,10]
[404947196,1770712238634,-233.51889341,0.00038989,10]
[404947197,1770712238746,-242.15909246,0.00038989,10]
[404947198,1770712238762,-251.11897888,0.00038989,10]
[404947199,1770712238772,-260.4103811,0.00038989,10]
[404947200,1770712238782,-270.0455652,0.00038989,10]
[404947201,1770712238792,-280.03725112,0.00038989,10]
[404947202,1770712238802,-290.39862941,0.00038989,10]
[404947203,1770712238812,-253.68861807,0.00038989,10]
[404947204,1770712238822,-13826.83282295,0.0003899,2]
[404947216,1770712240134,-3e-08,0.0003899,2]
[404947217,1770712240146,-677.975375,0.0003899,2]
[404947224,1770712246104,-151.0,0.00038356,120]
[404947225,1770712246113,-151.0,0.00038356,120]
[404947226,1770712246123,-151.0,0.00038356,120]
[404947227,1770712246132,-151.0,0.00038356,120]
[404947228,1770712246142,-151.0,0.00038356,120]
[404947229,1770712246151,-151.0,0.00038356,120]
[404947230,1770712246162,-151.0,0.00038989,120]
[404947231,1770712246171,-503.75,0.0003899,10]
[404947232,1770712246180,-1162.27895591,0.0003899,2]
[404947234,1770712247607,-151.0,0.00038356,120]
[404947235,1770712247617,-151.0,0.00038356,120]
[404947236,1770712247627,-151.0,0.00038356,120]
[404947237,1770712247636,-151.0,0.00038356,120]
[404947238,1770712247649,-151.0,0.00038989,120]
[404947239,1770712247659,-6116.81697113,0.0003899,2]
[404947284,1770712513048,500.0,0.00013699,2]
[404947285,1770712513104,1000.0,0.00014247,2]
[404947286,1770712522713,500.0,0.00013273,2]
[404947287,1770712522768,1000.00437204,0.00013821,2]
[404947290,1770712532647,500.0,0.00013699,2]
[404947291,1770712532709,473.80922961,0.00014247,2]
[404947303,1770712579702,503.38285996,0.00013273,2]
[404947304,1770712591681,502.22296747,0.00013273,2]
[404947305,1770712609056,500.0,0.00027498,120]
[404947306,1770712609280,500.0,0.00027498,120]
[404947307,1770712609597,500.0,0.00027498,120]
[404947308,1770712609879,160.99261248,0.00027499,120]
[404947319,1770712681138,150.63,0.00013986,15]
[404947320,1770712681413,150.63,0.00013986,15]
[404947343,1770713028016,-265.99305768,0.0002458,2]
[404947344,1770713033426,-165.0,0.0002458,2]
[404947345,1770713101224,367.32,0.00016438,5]
[404947346,1770713170884,500.0,0.00013699,2]
[404947353,1770713222949,-499.99956582,0.00024334,2]
[404947356,1770713413959,500.0,0.00013699,2]
[404947357,1770713415339,-721.00737641,0.00024091,2]
[404947358,1770713424152,500.00000003,0.00013699,2]
[404947557,1770713440356,-3e-08,0.00024091,2]
[404947940,1770713444233,-499.63515319,0.00024091,2]
[404948045,1770713446265,-3779.35747037,0.00024091,2]
[404948046,1770713446274,-150.0,0.00024496,2]
[404948047,1770713446284,-150.0,0.00024658,2]
[404948048,1770713446293,-316.87243735,0.00025205,2]
[404948050,1770713446303,-177.0,0.00026496,2]
[404948052,1770713446313,-1200.0,0.00026847,2]
[404948053,1770713446322,-300.0,0.00027498,2]
[404948054,1770713446331,-500.0,0.00027499,2]
[404948055,1770713446341,-500.0,0.00027499,2]
[404948056,1770713446350,-223.38380817,0.00028496,2]
[404948057,1770713446359,-1680.0,0.00029158,2]
[404948058,1770713446368,-420.0,0.00029713,2]
[404948059,1770713446377,-931.0,0.00031667,3]
[404948060,1770713446387,-158.829912,0.00032995,60]
[404948061,1770713446396,-423.76700477,0.00038,2]
[404948062,1770713446405,-297.38,0.00038349,2]
[404948063,1770713446414,-222.41,0.00038899,15]
[404948064,1770713446424,-160.17,0.00038899,15]
[404948065,1770713446433,-160.17,0.00038899,15]
[404948066,1770713446442,-160.17,0.00038899,15]
[404948067,1770713446453,-336.0,0.00038962,14]
[404948068,1770713446462,-386.70773617,0.00038962,14]
[404948069,1770713446472,-500.0,0.00038989,7]
[404948070,1770713446482,-500.0,0.00038989,7]
[404948071,1770713446492,-500.0,0.00038989,7]
[404948072,1770713446501,-500.0,0.00038989,7]
[404948073,1770713446512,-464.99079186,0.00038989,7]
[404948074,1770713446521,-419.79,0.0003899,10]
[404948076,1770713446530,-349.82,0.0003899,10]
[404948077,1770713446540,-291.52,0.0003899,10]
[404948078,1770713446549,-242.93,0.0003899,10]
[404948079,1770713446559,-6282.97499199,0.0003899,2]
[404948080,1770713446568,-1041.66666667,0.0003899,120]
[404948081,1770713446578,-490.18698614,0.0003899,3]
[404948082,1770713446587,-299.12086518,0.0003899,3]
[404948083,1770713446597,-222.41276025,0.00038999,15]
[404948084,1770713446606,-25042.25451924,0.00039,2]
[404948085,1770713446615,-3691.38030594,0.00039,5]
[404948086,1770713446627,-20116.5732751,0.00039,5]
[404948087,1770713446643,-7576.81228741,0.00039,5]
[404948088,1770713446654,-8823.44521921,0.00039,5]
[404948106,1770713591400,338.22,0.000235,2]
[404948112,1770713768007,296.51320183,0.00013699,2]
[404948126,1770714119442,-218.43492476,0.00024211,2]
[404948416,1770714391139,500.0,0.00013273,2]
[404948417,1770714427634,5000.0,0.000235,2]
[404948638,1770714638273,-988.01986227,0.00024953,2]
[404948645,1770714638327,-4011.98013773,0.00024953,2]
[404948647,1770714638337,-1200.0,0.00026848,2]
[404948649,1770714638347,-300.0,0.00028281,2]
[404948651,1770714638358,-3298.9658673,0.00028282,2]
[404948653,1770714638372,-8911.31155355,0.00030137,2]
[404948655,1770714638382,-218.43492476,0.00030234,2]
[404948657,1770714638392,-273.88786576,0.00030234,2]
[404948659,1770714638402,-2625.34414467,0.00030235,4]
[404948663,1770714638434,-378.81719397,0.00030235,4]
[404948810,1770714640540,-296.51320186,0.00030235,4]
[404949240,1770714646484,-1000.0,0.00024953,2]
[404949241,1770714646496,-4000.0,0.00024953,2]
[404949242,1770714646507,-5610.63701305,0.00030235,4]
[404949243,1770714646516,-8911.31155355,0.00030334,6]
[404949244,1770714646527,-1599.3367957,0.00030433,8]
[404949305,1770715048506,5000.0,0.000235,2]
[404949311,1770715070793,5000.0,0.000235,2]
[404949313,1770715092958,5000.0,0.000235,2]
[404949316,1770715114799,5000.0,0.000235,2]
[404949317,1770715137683,4713.43185206,0.000235,2]
[404949318,1770715230960,5000.0,0.000235,2]
[404949319,1770715234993,200.0,0.00027,120]
[404949327,1770715483709,988.01986227,0.000235,2]
[404949337,1770715722120,151.4851262,0.00015,2]
[404949338,1770715724029,268.50729542,0.0002,2]
[404949418,1770715838453,-150.0,0.00023967,2]
[404949419,1770715838464,-509.68,0.00023967,2]
[404949420,1770715838474,-657.2,0.00023967,2]
[404949421,1770715838484,-509.68,0.00023967,2]
[404949422,1770715838493,-571.00737641,0.0002465,2]
[404949423,1770715838503,-204.69,0.00025803,2]
[404949424,1770715838513,-192.15597142,0.00025967,2]
[404949425,1770715838522,-300.0,0.00026109,2]
[404949426,1770715838531,-1200.0,0.00026109,2]
[404949427,1770715838541,-300.0,0.00026172,2]
[404949428,1770715838550,-6278.0325993,0.00026173,2]
[404949429,1770715838560,-271.926493,0.00026324,2]
[404949430,1770715838570,-420.0,0.00028253,2]
[404949431,1770715838579,-1680.0,0.00028379,2]
[404949432,1770715838588,-185.56162261,0.00029583,2]
[404949433,1770715838598,-742.24649046,0.00029814,2]
[404949434,1770715838607,-500.0,0.00030235,2]
[404949435,1770715838617,-581.15,0.00030432,2]
[404949436,1770715838626,-6986.34289787,0.00030433,8]
[404949437,1770715838640,-325.63185998,0.00030433,8]
[404949438,1770715838650,-8911.31155355,0.00030531,10]
[404949439,1770715838659,-587.0,0.00030572,2]
[404949440,1770715838669,-8911.31155355,0.0003063,13]
[404949441,1770715838678,-221.76791285,0.00030682,2]
[404949442,1770715838688,-8911.31155355,0.00030728,15]
[404949443,1770715838697,-8911.31155355,0.00030827,17]
[404949444,1770715838707,-1018.0,0.00030846,2]
[404949445,1770715838716,-8911.31155355,0.00030925,19]
[404949446,1770715838726,-1357.778205,0.00030968,2]
[404949447,1770715838739,-6252.88769642,0.00031024,21]
[404949467,1770715846566,-295.96102886,0.00031024,21]
[404949469,1770715976626,-261.52478426,0.00030137,2]
[404949470,1770715976660,-1637.33208282,0.00030379,2]
[404949471,1770715976690,-1290.65610689,0.00030433,120]
[404949472,1770715976705,-261.52478426,0.00030433,120]
[404949473,1770715976717,-447.81910885,0.00030433,120]
[404949474,1770715976728,-240.55296663,0.00030469,2]
[404949475,1770715976738,-500.0,0.0003053,2]
[404949476,1770715976748,-154.36659779,0.0003053,2]
[404949477,1770715976758,-294.59340955,0.0003053,2]
[404949478,1770715976770,-94.76067062,0.0003053,2]
[404949479,1770715976784,-500.0,0.0003053,2]
[404949480,1770715976794,-500.0,0.0003053,2]
[404949481,1770715976804,-500.0,0.0003053,2]
[404949482,1770715976815,-405.23932938,0.0003053,2]
[404949494,1770716436233,5000.0,0.000235,2]
[404949495,1770716460235,776.56394879,0.000235,2]
[404949497,1770716626514,5000.0,0.000235,2]
[404949526,1770717032455,-376.35483316,0.00027494,2]
[404949538,1770717038651,-2688.63569234,0.00027494,2]
[404949539,1770717038661,-1200.0,0.00027552,2]
[404949540,1770717038671,-432.99533994,0.00027553,2]
[404949541,1770717038681,-769.76949323,0.00027553,2]
[404949542,1770717038691,-453.52130565,0.00027553,2]
[404949543,1770717038711,-816.33835017,0.00027553,2]
[404949544,1770717038723,-1451.26817808,0.00027553,2]
[404949545,1770717038734,-300.0,0.00027682,2]
[404949546,1770717038745,-11000.0,0.00027685,2]
[404949547,1770717038756,-500.0,0.00029778,2]
[404949548,1770717038766,-500.0,0.00029778,2]
[404949549,1770717038777,-500.0,0.00029778,2]
[404949551,1770717038787,-428.50856816,0.00029778,2]
[404949552,1770717038797,-500.0,0.00029778,2]
[404949553,1770717038807,-500.0,0.00029778,2]
[404949554,1770717038818,-500.0,0.00029778,2]
[404949555,1770717038828,-500.0,0.00029778,2]
[404949556,1770717038839,-500.0,0.00029778,2]
[404949557,1770717038849,-500.0,0.00029778,2]
[404949558,1770717038859,-500.0,0.00029778,2]
[404949559,1770717038869,-206.59806361,0.00029778,2]
[404949560,1770717038879,-500.0,0.00029778,2]
[404949561,1770717038889,-300.0,0.00029778,2]
[404949562,1770717038899,-242.3970264,0.00029778,2]
[404949563,1770717038910,-224.622384,0.00029778,2]
[404949564,1770717038920,-7088.36984105,0.00029778,2]
[404949565,1770717038928,-9361.7258687,0.0002978,2]
[404949566,1770717038937,-8763.2552613,0.00029802,2]
[404949567,1770717038946,-480.0,0.00029901,2]
[404949568,1770717038955,-420.0,0.00029906,2]
[404949569,1770717038965,-382.49202598,0.0003053,2]
[404949570,1770717038975,-1670.05460353,0.0003053,2]
[404949571,1770717038984,-437.13374398,0.0003053,2]
[404949572,1770717038993,-2968.98596183,0.0003053,2]
[404949573,1770717039002,-2362.46282827,0.00031024,21]
[404949574,1770717039012,-8911.31155355,0.00031122,24]
[404949575,1770717039022,-354.3465178,0.0003122,2]
[404949576,1770717039032,-8911.31155355,0.00031221,26]
[404949577,1770717039042,-8089.89393007,0.00031319,28]
[404949578,1770717039055,-821.41762348,0.00031319,28]
[404949579,1770717039066,-8911.31155355,0.00031418,30]
[404949580,1770717039075,-342.34,0.00031506,10]
[404949581,1770717039085,-285.29,0.00031506,10]
[404949582,1770717039098,-1520.08874999,0.00031516,32]
[404949583,1770717039109,-7391.22280356,0.00031516,32]
[404949584,1770717039119,-8911.31155355,0.00031615,35]
[404949585,1770717039128,-2152.04557519,0.00031713,37]
[404949606,1770717046915,-1891.74859664,0.00031713,37]
[404949607,1770717046926,-776.56394879,0.00031713,37]
[404949627,1770717614042,393.0,0.00030136,120]
[404949630,1770717719693,-3545.59430627,0.00024703,2]
[404949631,1770717719717,-1454.40569373,0.00024703,2]
[404949639,1770718156779,5000.0,0.000235,2]
[404949644,1770718214987,5000.0,0.000235,2]
[404949660,1770718231668,-160.01887955,0.00024019,5]
[404949662,1770718231677,-300.0,0.00026848,2]
[404949663,1770718231686,-503.70483239,0.00026848,2]
[404949784,1770718237788,-799.65154018,0.00024953,2]
[404949786,1770718237798,-696.29516761,0.00026848,2]
[404949788,1770718237807,-520.7105598,0.0002866,2]
[404949790,1770718237818,-420.0,0.0002903,2]
[404949792,1770718237827,-278.685295,0.00029078,2]
[404949794,1770718237838,-500.0,0.00029801,31]
[404949796,1770718237847,-2554.9762783,0.00030131,2]
[404949798,1770718237856,-981.71033288,0.00030169,2]
[404949800,1770718237866,-155.85,0.00030495,2]
[404949803,1770718237875,-500.0,0.00030529,31]
[404949806,1770718237885,-350.20719636,0.0003053,2]
[404949809,1770718237894,-630.37295345,0.0003053,2]
[404949811,1770718237904,-39.01358798,0.0003053,2]
[404949813,1770718237915,-484.93872265,0.0003053,2]
[404949815,1770718237924,-1120.66302835,0.00030913,2]
[404949817,1770718237934,-500.0,0.0003122,31]
[404949819,1770718237943,-534.57805617,0.0003139,2]
[404950015,1770718240056,-52.42194383,0.0003139,2]
[404950017,1770718240066,-496.92958337,0.00031417,31]
[404950511,1770718245224,-3.07041663,0.00031417,31]
[404950513,1770718245234,-500.0,0.00031614,31]
[404950515,1770718245244,-1142.49138019,0.00031713,37]
[404950583,1770718245811,-799.65154018,0.00031713,37]
[404950604,1770718246034,-2148.81051256,0.00031713,37]
[404950606,1770718246043,-295.59896306,0.00031757,2]
[404950608,1770718246053,-200.0,0.00031811,2]
[404950610,1770718246062,-247.18026489,0.00031811,2]
[404950612,1770718246073,-646.62166033,0.00031811,31]
[404950614,1770718246083,-8911.31155355,0.00031812,39]
[404950616,1770718246092,-3994.04968327,0.0003191,41]
[404958380,1770718518627,5000.0,0.00030137,120]
[404958797,1770718537631,-150.0,0.0002589,2]
[404963037,1770719152078,-446.51320185,0.00024456,2]
[404963040,1770719170538,154.86735458,0.00021918,2]
[404963062,1770719346898,300.00000006,0.000235,2]
[404963150,1770719437927,-1007.89249188,0.00023969,2]
[404963152,1770719437937,-150.0,0.00024768,2]
[404963154,1770719437947,-1200.0,0.00024998,2]
[404963156,1770719437956,-300.0,0.00024999,2]
[404963158,1770719437966,-256.0,0.00024999,2]
[404963160,1770719437976,-300.0,0.00024999,2]
[404963162,1770719437986,-300.0,0.00024999,2]
[404963165,1770719437997,-300.0,0.00024999,2]
[404963167,1770719438007,-48780.34412509,0.00025,2]
[404963169,1770719438016,-177.0,0.00026768,2]
[404963171,1770719438026,-420.0,0.00027082,2]
[404963172,1770719438035,-1680.0,0.00027204,2]
[404963174,1770719438044,-434.28270009,0.00027228,2]
[404963176,1770719438055,-1735.39366957,0.00027228,2]
[404963179,1770719438068,-250.0,0.00027383,2]
[404963181,1770719438078,-232.81831821,0.0002876,2]
[404963183,1770719438090,-18920.12930292,0.00028767,2]
[404963185,1770719438100,-204.0,0.00028768,2]
[404963186,1770719438110,-893.95143077,0.00029,2]
[404963188,1770719438121,-1490.2662999,0.00029141,2]
[404963191,1770719438131,-587.0,0.00029339,2]
[404963192,1770719438141,-500.0,0.00030168,2]
[404963194,1770719438152,-3734.9112968,0.00030485,2]
[404963196,1770719438161,-231.0,0.00030768,2]
[404963198,1770719438171,-4680.8629345,0.00030881,2]
[404963200,1770719438181,-208.28477331,0.00031658,2]
[404963202,1770719438191,-228.0,0.00031784,2]
[404963204,1770719438201,-500.0,0.00031909,2]
[404963206,1770719438211,-4917.26187028,0.0003191,41]
[404963208,1770719438220,-237.74,0.00031999,10]
[404963210,1770719438230,-198.12,0.00031999,10]
[404963211,1770719438239,-165.1,0.00031999,10]
[404963212,1770719438248,-8911.31155355,0.00032009,43]
[404963213,1770719438258,-8911.31155355,0.00032107,46]
[404963214,1770719438267,-544.16574192,0.00032205,2]
[404963215,1770719438276,-8911.31155355,0.00032206,48]
[404963216,1770719438285,-248.04256246,0.00032299,2]
[404963217,1770719438294,-200.0,0.000323,120]
[404963218,1770719438303,-8911.31155355,0.00032304,50]
[404963219,1770719438313,-2860.463645,0.00032323,2]
[404963220,1770719438322,-4971.0035617,0.00032403,52]
[404963391,1770719440155,-3940.30799185,0.00032403,52]
[404963393,1770719440166,-250.0,0.00032423,2]
[404963395,1770719440176,-250.0,0.00032423,2]
[404963397,1770719440185,-250.0,0.00032423,2]
[404963399,1770719440195,-250.0,0.00032423,2]
[404963401,1770719440205,-173.95140673,0.00032423,2]
[404963405,1770719440239,-3e-08,0.00032423,2]
[404963610,1770719446150,-76.04859324,0.00032423,2]
[404963611,1770719446168,-250.0,0.00032423,2]
[404963612,1770719446180,-250.0,0.00032423,2]
[404963613,1770719446190,-250.0,0.00032423,2]
[404963614,1770719446201,-303.92390221,0.00032423,2]
[404963615,1770719446212,-250.0,0.00032423,2]
[404963616,1770719446223,-250.0,0.00032423,2]
[404963617,1770719446234,-250.0,0.00032423,2]
[404963618,1770719446244,-250.0,0.00032423,2]
[404963619,1770719446254,-250.0,0.00032423,2]
[404963620,1770719446264,-250.0,0.00032423,2]
[404963621,1770719446274,-250.0,0.00032423,2]
[404963622,1770719446285,-250.0,0.00032423,2]
[404963623,1770719446294,-250.0,0.00032423,2]
[404963624,1770719446304,-250.0,0.00032423,2]
[404963626,1770719446314,-250.0,0.00032423,2]
[404963628,1770719446324,-250.0,0.00032423,2]
[404963630,1770719446333,-250.0,0.00032423,2]
[404963632,1770719446343,-250.0,0.00032423,2]
[404963633,1770719446353,-250.0,0.00032423,2]
[404963634,1770719446362,-250.0,0.00032423,2]
[404963635,1770719446373,-250.0,0.00032423,2]
[404963636,1770719446383,-151.0,0.00032423,2]
[404963637,1770719446394,-250.0,0.00032423,2]
[404963638,1770719446404,-250.0,0.00032423,2]
[404963639,1770719446414,-151.0,0.00032423,2]
[404963640,1770719446424,-250.0,0.00032423,2]
[404963641,1770719446433,-250.0,0.00032423,2]
[404963642,1770719446443,-151.0,0.00032423,2]
[404963643,1770719446452,-250.0,0.00032423,2]
[404963644,1770719446462,-151.0,0.00032423,2]
[404963645,1770719446471,-250.0,0.00032423,2]
[404963646,1770719446481,-500.0,0.00032423,2]
[404963647,1770719446491,-250.0,0.00032423,2]
[404963648,1770719446500,-160.25404721,0.00032423,2]
[404963649,1770719446509,-500.0,0.00032423,2]
[404963650,1770719446519,-500.0,0.00032423,2]
[404963651,1770719446529,-500.0,0.00032423,2]
[404963652,1770719446539,-500.0,0.00032423,2]
[404963653,1770719446548,-500.0,0.00032423,2]
[404963654,1770719446558,-500.0,0.00032423,2]
[404963655,1770719446567,-500.0,0.00032423,2]
[404963656,1770719446577,-500.0,0.00032423,2]
[404963657,1770719446586,-500.0,0.00032423,2]
[404963658,1770719446596,-500.0,0.00032423,2]
[404963659,1770719446606,-250.0,0.00032423,2]
[404963660,1770719446616,-250.0,0.00032423,2]
[404963661,1770719446626,-250.0,0.00032423,2]
[404963662,1770719446635,-250.0,0.00032423,2]
[404963663,1770719446644,-250.0,0.00032423,2]
[404963664,1770719446653,-250.0,0.00032423,2]
[404963665,1770719446664,-250.0,0.00032423,2]
[404963666,1770719446675,-250.0,0.00032423,2]
[404963667,1770719446684,-250.0,0.00032423,2]
[404963668,1770719446693,-250.0,0.00032423,2]
[404963669,1770719446703,-250.0,0.00032423,2]
[404963670,1770719446713,-261.52478426,0.00032424,56]
[404963671,1770719446723,-956.844587,0.00032491,2]
[404963672,1770719446732,-8911.31155355,0.00032501,54]
[404963673,1770719446742,-8911.31155355,0.000326,57]
[404963674,1770719446753,-814.43020421,0.00032698,59]
[404963675,1770719446765,-8096.88134934,0.00032698,59]
[404963676,1770719446775,-8911.31155355,0.00032797,61]
[404963677,1770719446785,-7694.97061494,0.00032895,63]
[404963770,1770720632036,-809.62881463,0.00027278,2]
[404963772,1770720632047,-158.14030534,0.00027397,5]
[404963774,1770720632057,-150.0,0.00027397,5]
[404963776,1770720632066,-150.0,0.00027397,5]
[404963778,1770720632075,-250.0,0.00027945,5]
[404963780,1770720632084,-250.0,0.00027945,5]
[404963782,1770720632094,-350.0,0.00028493,5]
[404963784,1770720632103,-350.0,0.00028493,5]
[404963786,1770720632112,-1200.0,0.00029037,2]
[404963788,1770720632121,-266.0,0.00029038,2]
[404963790,1770720632131,-300.0,0.00029038,2]
[404963792,1770720632140,-300.0,0.00029038,2]
[404963794,1770720632149,-300.0,0.00029038,2]
[404963796,1770720632158,-4515.35847398,0.00029039,2]
[404963798,1770720632169,-957.08314763,0.00029039,2]
[404963800,1770720632180,-450.0,0.00029041,5]
[404963802,1770720632188,-54.53447549,0.00029041,5]
[404963804,1770720632205,-395.46552451,0.00029041,5]
[404963806,1770720632215,-550.0,0.00029589,5]
[404963808,1770720632224,-550.0,0.00029589,5]
[404963810,1770720632233,-5000.0,0.0003,2]
[404963812,1770720632243,-223.91117049,0.00030136,2]
[404963814,1770720632252,-162.0837713,0.00030137,2]
[404963816,1770720632261,-762.98765112,0.00030137,120]
[404964091,1770720640334,-265.12851614,0.00030137,120]
[404964230,1770720641816,-4734.87148386,0.00030137,120]
[404964232,1770720641825,-5000.0,0.00030137,120]
[404964234,1770720641834,-650.0,0.00030137,5]
[404964236,1770720641843,-650.0,0.00030137,5]
[404964238,1770720641852,-3053.22169114,0.00030137,120]
[404964240,1770720641861,-753.88219611,0.00030685,5]
[404964242,1770720641870,-606.33133488,0.00030685,5]
[404964244,1770720641878,-420.0,0.00031327,2]
[404964246,1770720641887,-2549.869513,0.00031426,2]
[404964247,1770720641897,-162.0837713,0.00032555,56]
[404964249,1770720641906,-1277.4881392,0.00032628,2]
[404964251,1770720641914,-500.0,0.00032748,2]
[404964253,1770720641924,-504.736215,0.00032748,2]
[404964255,1770720641933,-2549.869513,0.00032749,2]
[404964257,1770720641943,-1216.34093861,0.00032895,63]
[404964260,1770720641953,-3287.87,0.000329,14]
[404964262,1770720641962,-8911.31155355,0.00032994,65]
[404964264,1770720641971,-8911.31155355,0.00033092,68]
[404964266,1770720641981,-8911.31155355,0.00033191,70]
[404964268,1770720641990,-8911.31155355,0.00033289,72]
[404964270,1770720641999,-8911.31155355,0.00033388,74]
[404964271,1770720642008,-11114.2551353,0.00033476,2]
[404964274,1770720642018,-8911.31155355,0.00033486,76]
[404964276,1770720642028,-282.0,0.000335,2]
[404964277,1770720642037,-825.5,0.00033575,10]
[404964280,1770720642047,-8911.31155355,0.00033585,79]
[404964282,1770720642056,-8911.31155355,0.00033683,81]
[404964284,1770720642066,-8911.31155355,0.00033782,83]
[404964286,1770720642075,-380.1,0.0003387,3]
[404964288,1770720642084,-8911.31155355,0.0003388,85]
[404964290,1770720642094,-267.28360629,0.00033946,120]
[404964292,1770720642103,-8911.31155355,0.00033979,87]
[404964294,1770720642113,-11114.2551353,0.00034062,2]
[404964296,1770720642122,-2549.869513,0.00034072,2]
[404964297,1770720642132,-8911.31155355,0.00034077,90]
[404964299,1770720642142,-8911.31155355,0.00034176,92]
[404964301,1770720642155,-8911.31155355,0.00034274,94]
[404964304,1770720642165,-8911.31155355,0.00034373,96]
[404964306,1770720642174,-3287.87,0.000344,14]
[404964308,1770720642183,-11114.2551353,0.00034461,2]
[404964309,1770720642193,-8911.31155355,0.00034471,98]
[404964311,1770720642203,-8911.31155355,0.0003457,101]
[404964314,1770720642220,-8911.31155355,0.00034668,103]
[404964316,1770720642230,-261.52478426,0.00034712,110]
[404964318,1770720642240,-8911.31155355,0.00034767,105]